bitfinex-derivatives/quotes_SOLF0:USTF0_20250501
["timestamp","ask_amount","ask_price","bid_price","bid_amount"]
[1746071819446,24.26,148.74,148.68,4.88466818]
[1746071819646,4.88466818,148.72,148.68,4.88466818]
[1746071820345,4.88466818,148.72,148.71,6.7232]
[1746071821551,4.88466818,148.72,148.7,6.7237]
[1746071825151,4.88466818,148.72,148.71,6.7234]
[1746071827151,4.88466818,148.72,148.7,6.7237]
[1746071828451,4.88466818,148.73,148.71,6.7233]
[1746071829451,24.26,148.74,148.72,6.723]
[1746071829648,29.14466818,148.74,148.72,6.723]
[1746071829951,4.88466818,148.76,148.71,4.88466818]
[1746071830850,4.88466818,148.76,148.74,6.722]
[1746071832147,11.60616818,148.76,148.73,6.7224]
[1746071832450,11.60616818,148.76,148.71,4.88466818]
[1746071832451,4.88466818,148.74,148.7,24.02]
[1746071833153,4.88466818,148.74,148.72,6.7227]
[1746071833959,4.88466818,148.74,148.73,6.7225]
[1746071838457,4.88466818,148.74,148.72,6.7228]
[1746071839458,4.88466818,148.74,148.7,26.0447]
[1746071839855,4.88466818,148.72,148.71,6.7233]
[1746071840556,4.88466818,148.72,148.7,8.7484]
[1746071842657,4.88466818,148.72,148.71,6.7234]
[1746071844357,4.88466818,148.73,148.72,6.7229]
[1746071846964,4.88466818,148.74,148.73,6.7225]
[1746071847163,4.88466818,148.75,148.7,2.0247]
[1746071848166,4.88466818,148.75,148.73,6.7222]
[1746071850165,11.60636818,148.75,148.72,6.7228]
[1746071851863,4.88466818,148.73,148.71,6.7232]
[1746071854180,4.88466818,148.73,148.7,2.0247]
[1746071854474,4.88466818,148.71,148.67,24.0]
[1746071854665,4.88466818,148.71,148.69,6.724]
[1746071855271,4.88466818,148.71,148.7,6.7239]
[1746071862275,4.88466818,148.72,148.7,6.7239]
[1746071863974,11.60746818,148.73,148.7,6.7239]
[1746071870083,6.7231,148.72,148.69,6.7241]
[1746071872481,6.7231,148.72,148.67,28.88466818]
[1746071872686,6.7231,148.72,148.7,6.7238]
[1746071873987,6.7231,148.72,148.69,6.7242]
[1746071876985,11.60826818,148.71,148.68,6.7245]
[1746071877192,11.60826818,148.71,148.67,28.88466818]
[1746071877590,11.60826818,148.71,148.68,6.7244]
[1746071877889,4.88466818,148.71,148.67,28.88466818]
[1746071878691,4.88466818,148.71,148.69,6.7243]
[1746071879894,6.7239,148.7,148.68,6.7247]
[1746071880094,4.88466818,148.69,148.65,2.0789]
[1746071880594,4.88466818,148.69,148.66,6.7256]
[1746071881994,11.60916818,148.69,148.65,2.0789]
[1746071882296,4.88466818,148.69,148.65,2.0789]
[1746071882603,28.76466818,148.7,148.66,4.88466818]
[1746071883396,28.76466818,148.7,148.68,6.7245]
[1746071883603,4.88466818,148.7,148.68,6.7245]
[1746071884502,4.88466818,148.7,148.69,6.7243]
[1746071887103,4.88466818,148.7,148.68,6.7246]
[1746071887399,4.88466818,148.7,148.66,4.88466818]
[1746071887708,4.88466818,148.7,148.69,6.7243]
[1746071889410,4.88466818,148.7,148.68,6.7246]
[1746071889912,11.60856818,148.7,148.67,6.725]
[1746071890211,4.88466818,148.7,148.65,2.0789]
[1746071890706,4.88466818,148.7,148.66,4.88466818]
[1746071891309,4.88466818,148.7,148.69,6.7243]
[1746071897309,4.88466818,148.7,148.66,4.88466818]
[1746071898014,4.88466818,148.7,148.68,6.7245]
[1746071900317,11.60876818,148.7,148.67,6.7252]
[1746071900510,4.88466818,148.7,148.65,2.0789]
[1746071901217,4.88466818,148.7,148.66,6.7253]
[1746071901218,6.7244,148.69,148.66,6.7253]
[1746071901519,4.88466818,148.7,148.65,2.0789]
[1746071901817,11.60876818,148.7,148.67,6.725]
[1746071902916,6.7241,148.7,148.67,6.725]
[1746071903219,11.60876818,148.7,148.67,6.725]
[1746071903720,11.60876818,148.7,148.68,6.7248]
[1746071906623,4.88466818,148.7,148.68,6.7248]
[1746071909126,4.88466818,148.7,148.69,6.7243]
[1746071909325,11.60786818,148.72,148.69,6.7243]
[1746071909625,4.88466818,148.7,148.66,4.88466818]
[1746071909827,4.88466818,148.7,148.67,6.7248]
[1746071910327,4.88466818,148.7,148.65,2.0789]
[1746071911224,4.88466818,148.7,148.68,6.7244]
[1746071911827,4.88466818,148.7,148.69,6.7243]
[1746071913323,4.88466818,148.71,148.69,6.7243]
[1746071913723,4.88466818,148.71,148.65,2.0789]
[1746071913924,4.88466818,148.72,148.7,6.7239]
[1746071914617,4.88466818,148.72,148.71,6.7234]
[1746071915230,4.88466818,148.72,148.7,6.7237]
[1746071916027,4.88466818,148.72,148.71,6.7234]
[1746071917730,23.88,148.73,148.71,6.7234]
[1746071919329,30.6026,148.73,148.71,6.7234]
[1746071920529,30.6026,148.73,148.7,6.7237]
[1746071922339,4.88466818,148.72,148.66,4.88466818]
[1746071922632,4.88466818,148.7,148.66,4.88466818]
[1746071922930,4.88466818,148.7,148.68,6.7247]
[1746071923131,4.88466818,148.7,148.66,4.88466818]
[1746071924431,11.60786818,148.72,148.66,4.88466818]
[1746071925126,11.60786818,148.72,148.68,6.7244]
[1746071925127,6.7235,148.71,148.68,6.7244]
[1746071926534,4.88466818,148.72,148.66,4.88466818]
[1746071926535,11.60786818,148.72,148.69,6.7243]
[1746071938056,4.88466818,148.72,148.66,4.88466818]
[1746071939451,11.60796818,148.72,148.69,6.7243]
[1746071941254,11.60796818,148.72,148.7,6.7236]
[1746071941255,4.88466818,148.72,148.7,6.7236]
[1746071941555,23.88,148.73,148.68,4.88466818]
[1746071941957,23.88,148.73,148.71,6.7231]
[1746071943356,23.88,148.73,148.72,6.723]
[1746071944050,4.88466818,148.74,148.7,4.88466818]
[1746071945260,4.88466818,148.74,148.72,6.7226]
[1746071946257,11.60676818,148.74,148.72,6.7226]
[1746071946554,11.60676818,148.74,148.71,6.7232]
[1746071946752,4.88466818,148.72,148.68,4.88466818]
[1746071947556,4.88466818,148.72,148.7,6.7238]
[1746071947955,4.88466818,148.72,148.68,4.88466818]
[1746071948956,6.7222,148.74,148.72,6.723]
[1746071949257,4.88466818,148.73,148.72,6.723]
[1746071949857,11.60636818,148.75,148.72,6.723]
[1746071950951,4.88466818,148.75,148.7,4.88466818]
[1746071951459,4.88466818,148.75,148.71,2.0689]
[1746071951654,4.88466818,148.75,148.73,6.7222]
[1746071951955,23.74,148.76,148.72,4.88466818]
[1746071953160,23.74,148.76,148.74,6.7217]
[1746071953860,30.4613,148.76,148.74,6.7217]
[1746071954354,30.4613,148.76,148.73,6.7224]
[1746071954859,23.74,148.76,148.73,6.7224]
[1746071955458,30.4613,148.76,148.73,6.7224]
[1746071957065,30.4613,148.76,148.74,6.7221]
[1746071957659,30.4613,148.76,148.73,6.7223]
[1746071961670,30.4613,148.76,148.74,6.7221]
[1746071961870,30.4613,148.76,148.71,6.95356818]
[1746071962168,4.88466818,148.75,148.71,2.0689]
[1746071962771,4.88466818,148.75,148.72,6.7227]
[1746071962969,11.60656818,148.75,148.72,6.7227]
[1746071964166,11.60666818,148.75,148.72,6.7229]
[1746071964571,4.88466818,148.75,148.69,4.88466818]
[1746071964769,4.88466818,148.73,148.69,6.7241]
[1746071966073,6.7233,148.72,148.69,6.7241]
[1746071966275,4.88466818,148.73,148.69,6.7241]
[1746071966463,4.88466818,148.73,148.7,6.7239]
[1746071968176,11.60746818,148.73,148.7,6.7239]
[1746071968479,4.88466818,148.73,148.71,6.7234]
[1746071970178,4.88466818,148.73,148.72,6.723]
[1746071970478,4.88466818,148.75,148.69,4.88466818]
[1746071971376,4.88466818,148.75,148.71,4.88466818]
[1746071973285,4.88466818,148.75,148.74,6.7221]
[1746071975078,4.88466818,148.75,148.73,6.7223]
[1746071977988,4.88466818,148.75,148.74,6.7221]
[1746071978587,23.74,148.76,148.75,6.7216]
[1746071980486,23.74,148.76,148.74,6.7219]
[1746071980691,11.60546818,148.77,148.74,6.7219]
[1746071981290,6.7212,148.76,148.73,6.7223]
[1746071981692,6.7212,148.76,148.72,1.9802]
[1746071982493,4.88466818,148.75,148.73,6.7225]
[1746071984394,11.60636818,148.75,148.72,8.703]
[1746071985491,11.60636818,148.75,148.73,6.7225]
[1746071985698,4.88466818,148.75,148.72,1.9802]
[1746071986596,11.60636818,148.75,148.72,8.7029]
[1746071986897,6.7217,148.75,148.72,8.7029]
[1746071990300,6.7221,148.74,148.72,1.9802]
[1746071990489,11.60676818,148.74,148.72,1.9802]
[1746071990693,4.88466818,148.74,148.72,8.703]
[1746071990990,6.7217,148.75,148.72,8.703]
[1746071991799,6.7221,148.74,148.72,1.9802]
[1746071992100,4.88466818,148.76,148.72,1.9802]
[1746071992400,6.7219,148.75,148.72,8.7032]
[1746071992901,6.7219,148.75,148.72,6.723]
[1746071995604,6.7219,148.75,148.73,6.7225]
[1746071995800,6.7219,148.75,148.7,28.60466818]
[1746071996704,6.7219,148.75,148.72,6.7228]
[1746071997405,6.7213,148.76,148.73,6.7225]
[1746071997905,4.88466818,148.77,148.73,6.7225]
[1746071998105,11.60576818,148.77,148.73,6.7225]
[1746071998301,11.60576818,148.77,148.74,6.7221]
[1746071999310,6.7212,148.76,148.74,6.7221]
[1746071999607,6.7212,148.76,148.73,6.7224]
[1746072000207,6.7212,148.76,148.74,6.7221]
[1746072000404,6.7212,148.76,148.72,4.88466818]
[1746072000709,6.7212,148.76,148.74,6.7221]
[1746072001611,6.7212,148.76,148.73,6.7223]
[1746072002206,11.60556818,148.77,148.72,4.88466818]
[1746072002409,6.7209,148.77,148.72,4.88466818]
[1746072002605,532.56,148.85,148.74,4.88466818]
[1746072002804,23.7,148.88,148.73,23.7]
[1746072003004,4.88466818,148.87,148.82,4.88466818]
[1746072003209,4.88466818,148.87,148.84,6.7172]
[1746072003714,11.60096818,148.87,148.83,6.7177]
[1746072003913,11.60096818,148.87,148.82,4.88466818]
[1746072004207,4.88466818,148.87,148.82,4.88466818]
[1746072004814,11.60096818,148.87,148.84,6.7173]
[1746072005515,6.7163,148.87,148.84,6.7173]
[1746072006015,6.7163,148.87,148.83,6.7178]
[1746072009012,6.7163,148.87,148.84,6.7175]
[1746072010019,6.7168,148.86,148.83,6.7178]
[1746072010417,23.7,148.88,148.83,6.7178]
[1746072010619,6.7165,148.87,148.83,6.7178]
[1746072011417,7.61775854,148.98,148.81,7.61775854]
[1746072011619,556.26,148.94,148.84,7.61775854]
[1746072011919,7.61775854,148.93,148.86,6.7163]
[1746072012119,7.61775854,148.89,148.83,23.7]
[1746072012618,6.7159,148.88,148.84,6.7175]
[1746072013517,6.7162,148.87,148.84,6.7175]
[1746072016315,23.7,148.9,148.84,6.7175]
[1746072016520,6.716,148.88,148.84,6.7175]
[1746072016823,23.7,148.9,148.83,31.31775854]
[1746072017321,31.29775854,148.93,148.83,31.31775854]
[1746072017724,6.7149,148.9,148.87,6.716]
[1746072018118,31.29775854,148.93,148.83,31.31775854]
[1746072018317,6.7146,148.91,148.87,6.716]
[1746072018822,6.7146,148.91,148.86,2.0952]
[1746072020123,6.7146,148.91,148.88,6.7157]
[1746072020323,6.7141,148.92,148.86,2.0952]
[1746072020520,6.7141,148.92,148.86,6.0359]
[1746072021320,6.7141,148.92,148.89,6.7151]
[1746072021827,30.3935,148.93,148.9,6.7146]
[1746072022323,6.7133,148.94,148.91,6.7141]
[1746072023323,6.7126,148.95,148.92,6.7138]
[1746072024028,6.7131,148.94,148.91,6.7142]
[1746072024330,23.68,149.0,148.91,23.68]
[1746072024529,31.29775854,149.0,148.93,6.7134]
[1746072024723,7.61775854,148.96,148.91,23.68]
[1746072024923,7.61775854,148.96,148.88,23.68]
[1746072025124,6.7129,148.95,148.91,6.7142]
[1746072025330,7.61775854,148.94,148.87,2.33]
[1746072025523,7.61775854,148.94,148.89,6.7149]
[1746072025725,6.7137,148.93,148.89,6.7149]
[1746072025928,7.61775854,148.94,148.87,26.01]
[1746072026331,6.7143,148.92,148.87,26.01]
[1746072026523,7.61775854,148.94,148.87,26.01]
[1746072026719,6.7152,148.9,148.87,26.01]
[1746072026926,7.61775854,148.92,148.87,2.33]
[1746072027125,31.27775854,148.92,148.87,2.33]
[1746072027332,6.7151,148.9,148.87,9.0461]
[1746072027631,6.7151,148.9,148.87,2.33]
[1746072027832,31.27775854,148.92,148.87,2.33]
[1746072028633,6.7152,148.9,148.86,8.8117]
[1746072028830,6.7152,148.9,148.87,6.7161]
[1746072030136,23.66,148.92,148.86,2.0952]
[1746072030330,25.5787,148.95,148.86,2.0952]
[1746072030636,23.66,148.95,148.86,2.0952]
[1746072030835,23.66,148.95,148.87,7.61775854]
[1746072031136,6.7132,148.94,148.9,6.7146]
[1746072031733,6.7132,148.94,148.88,23.66]
[1746072031926,30.3728,148.95,148.88,23.66]
[1746072032126,23.66,148.95,148.88,27.6322]
[1746072032331,6.7138,148.93,148.89,6.7151]
[1746072032737,6.7138,148.93,148.88,27.6322]
[1746072033038,6.7138,148.93,148.89,6.7152]
[1746072033337,31.27775854,148.95,148.89,6.7152]
[1746072033537,31.27775854,148.95,148.88,27.6322]
[1746072034040,6.7138,148.93,148.89,6.7152]
[1746072035139,6.7141,148.92,148.89,6.7152]
[1746072035940,6.7137,148.93,148.89,6.7152]
[1746072039142,6.714,148.92,148.89,6.7152]
[1746072040241,6.7146,148.91,148.88,27.6322]
[1746072040541,6.7146,148.91,148.86,13.6052]
[1746072040740,7.61775854,148.93,148.86,13.6052]
[1746072040943,6.7145,148.91,148.87,6.7159]
[1746072041139,7.61775854,148.93,148.87,6.7159]
[1746072041336,7.61775854,148.93,148.86,2.0952]
[1746072041541,6.7151,148.9,148.86,8.8117]
[1746072042146,6.7154,148.89,148.86,8.8117]
[1746072043944,6.7154,148.89,148.86,6.7165]
[1746072044341,6.7158,148.88,148.83,4.041]
[1746072044646,31.27775854,148.91,148.83,4.041]
[1746072045041,6.7166,148.87,148.83,10.7587]
[1746072045346,6.7166,148.87,148.83,4.041]
[1746072045642,31.27775854,148.91,148.83,4.041]
[1746072045843,6.7155,148.89,148.84,6.7172]
[1746072046044,6.7155,148.89,148.83,4.041]
[1746072046345,6.7153,148.89,148.86,6.7164]
[1746072046541,31.27775854,148.91,148.86,6.7164]
[1746072046844,23.66,148.91,148.84,6.7176]
[1746072047047,7.61775854,148.89,148.84,6.7176]
[1746072047345,6.716,148.88,148.85,6.7171]
[1746072048244,6.7162,148.87,148.84,6.7174]
[1746072051046,6.7159,148.88,148.85,6.717]
[1746072052153,31.27775854,148.91,148.86,6.7166]
[1746072052650,6.7153,148.9,148.86,6.7166]
[1746072052853,31.27775854,148.91,148.86,6.7166]
[1746072053152,6.7157,148.89,148.85,6.7169]
[1746072055053,6.7157,148.89,148.86,6.7166]
[1746072058761,7.61775854,148.87,148.81,13.26]
[1746072058960,7.61775854,148.83,148.82,9.94]
[1746072060166,14.33575854,148.83,148.82,9.94]
[1746072061068,6.718,148.83,148.82,9.94]
[1746072062670,6.7194,148.8,148.77,6.7206]
[1746072063069,23.66,148.82,148.77,6.7206]
[1746072063369,6.7193,148.81,148.77,6.7206]
[1746072064176,6.7195,148.8,148.77,6.7206]
[1746072065072,6.7204,148.78,148.76,2.33]
[1746072065571,6.7204,148.78,148.73,25.6043]
[1746072065773,6.7204,148.78,148.75,6.7215]
[1746072065971,6.7208,148.77,148.73,25.6043]
[1746072066167,7.61775854,148.81,148.73,25.6043]
[1746072066370,7.61775854,148.81,148.73,32.3267]
[1746072066567,6.7217,148.75,148.73,1.9443]
[1746072066768,23.66,148.78,148.73,1.9443]
[1746072067474,23.66,148.78,148.71,24.3272]
[1746072067675,7.61775854,148.77,148.71,17.604]
[1746072068176,23.66,148.78,148.71,17.604]
[1746072068371,6.7219,148.75,148.71,24.3273]
[1746072068672,23.66,148.78,148.71,17.604]
[1746072069579,6.7215,148.76,148.72,6.7226]
[1746072071574,6.7215,148.76,148.71,17.604]
[1746072071780,23.66,148.78,148.71,15.5]
[1746072073680,6.7218,148.75,148.71,15.5]
[1746072074182,6.7218,148.75,148.71,22.2234]
[1746072075983,6.7221,148.74,148.71,22.2234]
[1746072076283,6.7221,148.74,148.7,6.7237]
[1746072077292,6.7218,148.75,148.71,6.7234]
[1746072078990,7.61775854,148.77,148.69,2.33]
[1746072079285,23.66,148.78,148.69,2.33]
[1746072079583,6.7211,148.77,148.73,6.7224]
[1746072079791,23.66,148.78,148.69,11.01]
[1746072079982,23.66,148.78,148.71,15.5]
[1746072080290,6.7213,148.76,148.72,6.7226]
[1746072080890,6.7213,148.76,148.73,6.7224]
[1746072081093,6.7209,148.77,148.73,6.7224]
[1746072081287,23.66,148.78,148.73,6.7224]
[1746072082292,6.7212,148.76,148.72,6.723]
[1746072083093,6.7212,148.76,148.71,15.5]
[1746072083487,6.7212,148.76,148.72,6.7226]
[1746072085695,6.7212,148.76,148.73,6.7225]
[1746072086396,6.7212,148.76,148.72,6.7228]
[1746072087597,6.7218,148.75,148.72,6.7228]
[1746072091793,6.7214,148.76,148.72,6.7228]
[1746072092496,23.66,148.78,148.71,27.59]
[1746072092689,23.68,148.8,148.72,3.9521]
[1746072092889,23.68,148.8,148.73,7.61775854]
[1746072093197,23.68,148.8,148.78,6.72]
[1746072093500,23.68,148.8,148.73,7.61775854]
[1746072093710,23.68,148.8,148.79,6.7198]
[1746072093995,7.61775854,148.83,148.72,6.0336]
[1746072093996,23.68,148.83,148.75,31.29775854]
[1746072094401,23.68,148.83,148.75,26.01]
[1746072095097,23.68,148.83,148.76,6.7211]
[1746072095502,6.7197,148.8,148.76,6.7211]
[1746072099203,6.7191,148.81,148.77,6.7206]
[1746072099397,23.68,148.83,148.75,26.01]
[1746072099799,6.7186,148.82,148.79,6.7198]
[1746072100004,31.29775854,148.83,148.79,6.7198]
[1746072100706,31.29775854,148.83,148.75,33.62775854]
[1746072101005,23.68,148.83,148.75,33.62775854]
[1746072101305,30.3983,148.83,148.79,6.7195]
[1746072104007,6.7187,148.82,148.78,6.7201]
[1746072104506,6.7187,148.82,148.75,33.62775854]
[1746072104706,30.3982,148.83,148.79,6.7197]
[1746072105503,30.3982,148.83,148.79,22.2097]
[1746072105803,30.3982,148.83,148.8,6.7193]
[1746072106007,23.68,148.83,148.8,6.7193]
[1746072107211,30.398,148.83,148.8,6.7193]
[1746072108416,23.68,148.83,148.8,6.7193]
[1746072109017,23.68,148.83,148.81,6.7188]
[1746072109416,23.68,148.83,148.79,15.49]
[1746072109809,23.68,148.83,148.8,6.7193]
[1746072110817,30.3981,148.83,148.8,6.7193]
[1746072114221,30.3981,148.83,148.79,22.2096]
[1746072119328,6.7185,148.82,148.79,22.2096]
[1746072119728,23.68,148.83,148.79,22.2096]
[1746072119929,30.3982,148.83,148.79,22.2096]
[1746072120323,30.3982,148.83,148.8,6.7193]
[1746072123135,6.7185,148.82,148.79,22.2097]
[1746072123428,6.7185,148.82,148.79,6.7197]
[1746072123630,23.68,148.83,148.79,6.7197]
[1746072123831,30.3982,148.83,148.79,6.7197]
[1746072126033,6.7185,148.82,148.79,6.7197]
[1746072127237,6.7185,148.82,148.79,9.0497]
[1746072127439,23.68,148.83,148.79,2.33]
[1746072127634,7.61775854,148.81,148.79,2.33]
[1746072127935,6.7194,148.8,148.79,2.33]
[1746072129540,11.60026589,148.8,148.79,2.33]
[1746072131541,14.34604812,148.8,148.79,2.33]
[1746072137948,6.7194,148.8,148.79,2.33]
[1746072139043,6.7215,148.76,148.72,1.9781]
[1746072139448,6.7219,148.75,148.72,1.9781]
[1746072140044,6.7214,148.76,148.72,8.7009]
[1746072140247,6.7214,148.76,148.72,1.9781]
[1746072141345,6.7214,148.76,148.73,6.7225]
[1746072142643,30.4009,148.77,148.73,6.7225]
[1746072142851,23.68,148.77,148.72,14.1381]
[1746072143053,23.68,148.8,148.73,4.1438]
[1746072143347,23.68,148.8,148.73,27.8238]
[1746072143547,23.68,148.83,148.73,27.8238]
[1746072143956,30.3983,148.83,148.8,6.7191]
[1746072144145,23.68,148.83,148.74,7.11787956]
[1746072144447,6.7191,148.81,148.73,34.94167956]
[1746072144748,23.68,148.83,148.73,34.94167956]
[1746072145450,30.79787956,148.83,148.73,27.8238]
[1746072146750,6.7203,148.78,148.75,6.7214]
[1746072147053,23.68,148.79,148.73,27.8238]
[1746072147253,23.68,148.79,148.73,4.1438]
[1746072147446,6.7214,148.76,148.73,4.1438]
[1746072147646,23.68,148.79,148.72,20.8608]
[1746072147949,7.11787956,148.77,148.72,14.1381]
[1746072148249,6.7224,148.74,148.72,12.16]
[1746072148548,6.7225,148.73,148.72,12.16]
[1746072148952,23.68,148.75,148.72,12.16]
[1746072149658,23.68,148.75,148.72,27.62]
[1746072149950,6.7223,148.74,148.72,27.62]
[1746072150253,7.11787956,148.77,148.72,27.62]
[1746072150460,30.77787956,148.77,148.72,27.62]
[1746072150852,30.77787956,148.77,148.72,41.23]
[1746072153259,6.7222,148.74,148.72,41.23]
[1746072155158,6.7225,148.73,148.72,41.23]
[1746072156259,6.7223,148.74,148.72,41.23]
[1746072162659,6.7223,148.74,148.72,25.77]
[1746072169480,6.7225,148.73,148.72,25.77]
[1746072170074,6.7225,148.73,148.72,12.16]
[1746072172274,30.4025,148.73,148.72,12.16]
[1746072172580,30.4025,148.73,148.68,6.7247]
[1746072173685,30.4025,148.73,148.69,6.7243]
[1746072173874,30.4025,148.73,148.7,2.0278]
[1746072174074,23.68,148.73,148.7,2.0278]
[1746072174282,23.68,148.73,148.7,8.7514]
[1746072174584,30.4026,148.73,148.7,8.7514]
[1746072179288,30.4026,148.73,148.7,19.8814]
[1746072181492,30.4026,148.73,148.71,6.7234]
[1746072181794,30.4026,148.73,148.7,13.1578]
[1746072181795,30.80313713,148.76,148.7,13.1578]
[1746072182091,30.80313713,148.76,148.7,19.8814]
[1746072182595,30.80313713,148.76,148.7,13.1578]
[1746072184294,6.723,148.72,148.7,13.1578]
[1746072184793,6.7234,148.71,148.7,13.1578]
[1746072184995,23.68,148.72,148.69,26.38]
[1746072186095,7.12313713,148.7,148.6,23.68]
[1746072186491,6.7252,148.67,148.62,6.7274]
[1746072186695,23.68,148.68,148.6,23.68]
[1746072187200,23.68,148.68,148.64,6.7263]
[1746072187692,23.68,148.68,148.6,23.68]
[1746072188300,23.68,148.68,148.66,6.7254]
[1746072189698,30.4048,148.68,148.65,6.726]
[1746072190798,30.4048,148.68,148.64,6.7264]
[1746072191196,7.12313713,148.67,148.59,1.9638]
[1746072191597,23.68,148.68,148.59,1.9638]
[1746072191797,23.68,148.68,148.59,7.2238]
[1746072192102,6.7254,148.67,148.63,6.7268]
[1746072192605,23.68,148.68,148.63,6.7268]
[1746072192803,6.7257,148.66,148.63,6.7268]
[1746072193603,6.7257,148.66,148.62,6.7274]
[1746072194104,6.7264,148.65,148.62,6.7274]
[1746072195803,6.7264,148.65,148.63,6.727]
[1746072196298,6.7264,148.65,148.62,6.7273]
[1746072197503,6.7266,148.64,148.61,6.7278]
[1746072200702,6.7274,148.63,148.6,6.7283]
[1746072201000,23.68,148.64,148.59,5.26]
[1746072201307,6.7277,148.62,148.59,6.7286]
[1746072201605,23.68,148.64,148.59,6.7286]
[1746072201806,6.728,148.61,148.58,12.6217]
[1746072202405,6.728,148.61,148.59,6.7289]
[1746072202606,6.7277,148.62,148.59,6.7289]
[1746072207613,6.7277,148.62,148.55,5.27]
[1746072207614,6.7302,148.56,148.55,5.27]
[1746072207810,23.68,148.56,148.48,2.0042]
[1746072208006,23.68,148.56,148.49,30.80313713]
[1746072208209,23.68,148.59,148.53,6.7312]
[1746072208509,23.68,148.59,148.5,4.0893]
[1746072208706,6.73,148.57,148.53,6.7313]
[1746072209215,23.68,148.59,148.5,4.0893]
[1746072209512,6.7305,148.56,148.5,4.0893]
[1746072210314,6.7305,148.56,148.52,6.7316]
[1746072211716,6.7305,148.56,148.53,6.7315]
[1746072211912,6.7299,148.57,148.53,6.7315]
[1746072212318,6.7295,148.58,148.55,6.7303]
[1746072212616,23.68,148.59,148.5,11.21243713]
[1746072212810,30.409,148.59,148.56,6.7299]
[1746072213212,23.68,148.59,148.53,24.0]
[1746072213514,23.68,148.59,148.54,2.0275]
[1746072213817,24.0,148.62,148.54,2.0275]
[1746072214116,6.7287,148.6,148.56,6.7299]
[1746072214726,6.7289,148.59,148.56,6.7299]
[1746072215816,6.7286,148.6,148.57,6.7297]
[1746072216117,24.0,148.62,148.54,2.0275]
[1746072216519,24.0,148.62,148.55,6.7304]
[1746072216921,6.7291,148.59,148.56,6.7301]
[1746072217118,24.0,148.62,148.56,13.78]
[1746072218017,6.7285,148.6,148.57,6.7294]
[1746072220224,6.7285,148.6,148.56,20.51]
[1746072222828,6.7289,148.59,148.56,20.51]
[1746072223127,24.0,148.62,148.56,6.73]
[1746072223332,24.0,148.62,148.57,6.7297]
[1746072224029,6.7286,148.6,148.56,19.72]
[1746072227133,6.7283,148.61,148.57,6.7295]
[1746072227440,24.0,148.62,148.56,12.99]
[1746072227730,6.7287,148.6,148.56,19.72]
[1746072229837,6.7282,148.61,148.56,12.99]
[1746072230838,6.7288,148.6,148.56,19.7201]
[1746072232131,6.7289,148.59,148.56,19.7201]
[1746072233738,6.7289,148.59,148.56,12.99]
[1746072234737,6.7289,148.59,148.56,19.7202]
[1746072235838,6.7289,148.59,148.56,6.7302]
[1746072236736,24.0,148.62,148.55,12.8421]
[1746072236940,7.12313713,148.6,148.55,10.92]
[1746072238140,6.7296,148.58,148.55,10.92]
[1746072240044,7.12313713,148.6,148.55,10.92]
[1746072240045,6.7299,148.57,148.55,10.92]
[1746072240341,6.7299,148.57,148.54,2.0462]
[1746072240645,6.7299,148.57,148.54,8.7771]
[1746072241645,6.7299,148.57,148.55,6.7307]
[1746072241844,6.7299,148.57,148.54,2.0462]
[1746072242641,6.7299,148.57,148.55,6.7307]
[1746072242943,7.12313713,148.6,148.54,2.0462]
[1746072243245,6.7299,148.57,148.54,8.7771]
[1746072243444,7.12313713,148.6,148.54,8.7771]
[1746072243843,6.7301,148.57,148.54,8.7771]